bitfinex/quotes_ETHUSD_20250223
["timestamp","ask_amount","ask_price","bid_price","bid_amount"]
[1740323776451,5.18,2807.2,2806.7,0.04350269]
[1740323776960,5.18,2807.2,2806.8,0.7901]
[1740323777143,5.18,2807.2,2806.8,0.83360269]
[1740323778793,5.18,2807.2,2806.8,0.7901]
[1740323780078,5.18,2807.2,2806.9,0.04350269]
[1740323782067,5.18,2807.6,2806.9,0.04350269]
[1740323782660,5.80796227,2807.6,2806.9,0.04350269]
[1740323784150,3.56203,2807.4,2806.9,0.04350269]
[1740323784483,3.56203,2807.4,2806.5,0.762]
[1740323784637,0.8318,2807.5,2806.5,0.762]
[1740323784829,0.8318,2807.5,2806.6,0.04289233]
[1740323785057,1.49577623,2807.5,2806.6,0.04289233]
[1740323785848,1.49577623,2807.5,2806.7,0.762]
[1740323786059,1.49577623,2807.5,2806.8,0.04296862]
[1740323786244,5.05773623,2807.5,2806.7,0.762]
[1740323786443,5.05773623,2807.5,2806.8,0.04300677]
[1740323786658,1.44274785,2807.4,2806.7,0.762]
[1740323786844,1.44274785,2807.4,2806.8,0.04300677]
[1740323787046,1.44274785,2807.4,2806.7,0.762]
[1740323787455,1.44274785,2807.4,2806.8,0.04300677]
[1740323787779,1.44274785,2807.4,2806.7,0.762]
[1740323788073,5.40745479,2807.3,2806.8,0.04299723]
[1740323788265,5.18,2807.3,2806.7,0.762]
[1740323788474,5.18,2807.3,2806.8,0.04299723]
[1740323788660,5.18,2807.3,2806.7,0.762]
[1740323788861,5.18,2807.3,2806.8,0.04299723]
[1740323789074,5.18,2807.3,2806.7,0.762]
[1740323789251,5.18,2807.3,2806.8,0.04299723]
[1740323789451,5.18,2807.3,2806.7,0.762]
[1740323789661,5.18,2807.3,2806.8,0.04299723]
[1740323789847,5.18,2807.3,2806.9,0.7974]
[1740323790038,5.18,2807.3,2807.0,0.04292094]
[1740323792450,5.18,2807.3,2807.1,0.7974]
[1740323792663,5.18,2808.0,2807.2,2.62343135]
[1740323792973,5.18,2808.0,2807.3,0.84022558]
[1740323793560,5.18,2808.0,2807.3,0.7974]
[1740323795197,0.8042,2807.8,2807.3,0.7974]
[1740323795861,0.8042,2807.8,2807.4,0.04161477]
[1740323796061,1.758748,2807.8,2807.3,0.7974]
[1740323796272,1.758748,2807.8,2807.4,0.04164337]
[1740323796496,1.758748,2807.8,2807.3,0.7974]
[1740323796997,5.18,2807.7,2807.3,0.7974]
[1740323798359,5.18,2807.7,2807.4,0.04170056]
[1740323798896,5.18,2807.7,2807.3,0.7974]
[1740323798897,5.698,2807.7,2807.3,0.7974]
[1740323799394,5.698,2807.7,2807.4,0.04170056]
[1740323799691,5.698,2807.7,2807.1,0.7974]
[1740323800707,0.8042,2807.6,2807.1,0.7974]
[1740323801091,0.8042,2807.6,2807.2,0.04170056]
[1740323801409,0.65022,2807.5,2807.2,0.04170056]
[1740323801707,0.8042,2807.6,2807.1,0.7974]
[1740323802062,0.8042,2807.6,2807.2,0.04170056]
[1740323802262,0.8042,2807.6,2807.1,0.7974]
[1740323802537,0.8042,2807.6,2807.2,0.04170056]
[1740323802817,5.698,2807.7,2807.2,0.04170056]
[1740323803022,5.18,2807.6,2807.1,0.7974]
[1740323803171,5.18,2807.6,2807.3,0.04170056]
[1740323803368,5.7498,2807.6,2807.1,0.7974]
[1740323803568,5.18,2807.6,2807.4,0.04181495]
[1740323803867,5.18,2807.6,2807.1,0.7974]
[1740323804116,5.18,2807.6,2807.2,0.04180542]
[1740323819725,0.7916,2807.5,2807.2,0.04180542]
[1740323820113,0.7916,2807.5,2807.1,0.7974]
[1740323820315,0.7916,2807.5,2807.3,0.04191025]
[1740323820551,0.7916,2807.5,2807.1,0.7974]
[1740323820897,0.7916,2807.5,2807.2,0.04191025]
[1740323823034,8.74208,2807.4,2807.2,0.04191025]
[1740323823346,8.74208,2807.4,2806.6,0.8007]
[1740323823347,0.7916,2807.3,2806.6,0.8007]
[1740323823705,0.7916,2807.3,2806.7,0.04050675]
[1740323824965,5.18,2807.2,2806.7,0.04050675]
[1740323825104,6.94100135,2806.8,2806.7,0.04050675]
[1740323825299,3.56333,2806.4,2805.3,0.8791]
[1740323825535,0.7548,2806.2,2805.3,0.8791]
[1740323825927,5.18,2806.1,2805.4,0.03421432]
[1740323826251,0.59348,2806.0,2805.4,0.03421432]
[1740323826488,4.15728,2806.0,2805.4,0.03421432]
[1740323826619,0.7548,2805.9,2805.3,0.087]
[1740323828012,0.7548,2805.7,2805.3,0.087]
[1740323828215,4.31935,2805.4,2805.3,0.087]
[1740323828612,3.56455,2805.4,2805.3,0.087]
[1740323828840,5.9348,2805.6,2805.3,0.087]
[1740323829629,5.18,2805.9,2805.4,0.7566]
[1740323830039,5.18,2805.9,2805.5,0.03631212]
[1740323831549,1.3346,2806.7,2805.6,0.7901]
[1740323831550,0.26338002,2806.5,2805.6,0.7901]
[1740323831743,5.18,2806.5,2805.6,0.7901]
[1740323831943,5.18,2806.5,2806.0,2.62343135]
[1740323832144,5.18,2807.0,2806.1,3.7901]
[1740323832573,5.18,2807.0,2806.2,0.03631212]
[1740323834975,0.802,2807.4,2806.3,2.62343135]
[1740323835268,5.18,2807.5,2806.7,0.7901]
[1740323835827,5.18,2807.5,2806.8,0.03487212]
[1740323836022,5.18,2807.5,2806.9,0.7901]
[1740323836618,5.18,2807.5,2807.0,0.03487212]
[1740323840971,5.18,2807.8,2807.1,0.7901]
[1740323843981,5.18,2807.8,2807.3,0.7901]
[1740323844158,5.18,2808.6,2807.6,0.7705]
[1740323844952,5.44441946,2808.6,2807.6,0.7705]
[1740323845177,5.18,2808.6,2807.6,3.7705]
[1740323847682,5.18,2808.6,2807.7,0.7705]
[1740323848469,5.18,2808.6,2808.0,0.7705]
[1740323849272,5.185,2808.9,2808.2,3.7547]
[1740323849470,5.185,2808.9,2808.3,0.7547]
[1740323853289,5.7035,2808.9,2808.3,0.7547]
[1740323853490,5.7035,2808.9,2807.7,2.62343135]
[1740323853491,4.31261,2808.8,2807.8,0.7547]
[1740323853653,3.5605,2808.6,2807.8,0.7547]
[1740323853848,4.31265,2808.8,2807.8,0.7547]
[1740323854053,3.56044,2808.7,2807.8,0.7547]
[1740323854349,0.787309,2808.6,2807.8,0.7547]
[1740323854585,4.347889,2808.6,2807.8,0.7547]
[1740323854785,0.787309,2808.6,2807.8,0.7547]
[1740323855365,5.18,2808.7,2807.8,0.7547]
[1740323855987,5.18,2808.7,2807.8,3.7547]
[1740323856290,5.18,2808.7,2807.9,0.7547]
[1740323859147,0.005,2808.9,2807.9,0.7547]
[1740323859262,0.005,2808.9,2808.3,2.62343135]
[1740323859462,0.005,2808.9,2808.4,0.7547]
[1740323867525,0.005,2808.9,2808.1,0.8039]
[1740323868733,8.74025,2808.8,2808.1,0.8039]
[1740323869034,0.874525,2808.7,2807.9,0.8039]
[1740323874241,5.18,2808.6,2807.9,0.8039]
[1740323878068,3.83247626,2808.2,2807.4,0.7944]
[1740323878270,5.9505,2808.1,2807.4,0.7944]
[1740323878463,0.97829763,2808.0,2807.4,0.7944]
[1740323879036,4.53954763,2808.0,2807.4,0.7944]
[1740323879382,4.53954763,2808.0,2806.2,5.39]
[1740323879383,3.56139,2807.9,2806.9,0.7944]
[1740323880252,0.97829763,2808.0,2806.9,0.7944]
[1740323880775,4.53954763,2808.0,2806.9,0.7944]
[1740323880974,1.04900476,2807.9,2806.9,0.7944]
[1740323882490,1.04900476,2807.9,2806.9,3.7944]
[1740323883087,5.18,2807.8,2806.9,3.7944]
[1740323883583,5.18,2807.8,2807.0,0.7944]
[1740323884487,5.18,2807.8,2807.1,2.62343135]
[1740323884674,5.18,2807.8,2807.2,0.7824]
[1740323886089,6.4972,2807.8,2807.2,0.7824]
[1740323886656,5.698,2807.8,2807.2,0.7824]
[1740323886882,5.18,2807.8,2807.2,0.7824]
[1740323887786,8.74152,2807.8,2807.2,0.7824]
[1740323887966,0.7992,2807.7,2806.6,0.7824]
[1740323888162,5.18,2807.6,2806.6,3.0]
[1740323888375,5.18,2807.6,2806.9,0.7824]
[1740323892011,5.18,2808.0,2806.9,0.7824]
[1740323892161,0.8082,2807.7,2806.9,0.7824]
[1740323892663,3.6575,2807.7,2806.9,0.7824]
[1740323892980,0.8082,2807.7,2806.9,0.7824]
[1740323893163,5.18,2807.6,2806.6,0.7958]
[1740323893414,0.8082,2807.5,2806.6,0.7958]
[1740323893775,0.8082,2807.3,2806.4,0.7958]
[1740323894106,3.65845,2806.8,2806.0,0.7958]
[1740323894407,5.545845,2806.7,2806.0,0.7958]
[1740323894955,6.26950784,2806.7,2806.0,0.7958]
[1740323897392,5.90366284,2806.7,2806.0,0.7958]
[1740323897574,5.18,2806.7,2806.0,0.7958]
[1740323897771,5.18,2806.7,2806.3,0.7958]
[1740323897974,5.18,2806.7,2806.4,0.7958]
[1740323900601,1.07123631,2807.4,2806.4,0.7958]
[1740323901006,4.58260394,2807.4,2806.4,0.7958]
[1740323901183,0.72173592,2806.8,2806.5,0.70867573]
[1740323901601,5.18,2807.3,2806.5,0.70867573]
[1740323901779,0.72237823,2806.9,2806.5,0.70867573]
[1740323901978,0.72237823,2806.9,2806.4,0.7958]
[1740323901979,5.18,2807.3,2806.4,0.7958]
[1740323903002,6.15625739,2807.3,2806.4,0.7958]
[1740323903798,5.18,2807.2,2806.4,0.7958]
[1740323903990,2.85003,2807.0,2806.2,0.7958]
[1740323904192,0.8005,2806.8,2805.9,1.51674495]
[1740323904360,5.18,2806.7,2805.6,0.267]
[1740323904560,0.4225108,2806.6,2805.6,0.267]
[1740323904770,5.18,2806.7,2805.7,3.8146]
[1740323904987,5.18,2806.7,2805.7,3.84809583]
[1740323906889,0.69900528,2806.4,2805.7,3.84809583]
[1740323914511,0.7958,2806.3,2805.7,3.84809583]
[1740323914719,0.7958,2806.3,2805.7,0.03349583]
[1740323914720,5.9758,2806.3,2805.7,0.03349583]
[1740323914904,0.66748053,2806.2,2805.7,0.03349583]
[1740323915235,5.84748053,2806.2,2805.6,0.71691569]
[1740323915727,0.7958,2806.1,2805.6,0.71691569]
[1740323915929,0.7958,2806.1,2805.3,0.087]
[1740323916296,5.9758,2806.1,2805.3,0.087]
[1740323916482,0.66432805,2806.0,2805.3,0.087]
[1740323918531,0.7958,2805.9,2805.3,0.087]
[1740323918934,0.7958,2805.7,2805.3,0.087]
[1740323922259,5.18,2805.6,2805.3,0.087]
[1740323922404,2.8516,2805.5,2805.3,0.087]
[1740323922767,9.6306,2805.4,2805.3,0.087]
[1740323924526,12.6306,2805.4,2805.3,0.087]
[1740323924729,13.1806,2805.4,2805.3,0.087]
[1740323925439,10.32896,2805.4,2805.3,0.087]
[1740323926208,6.77896,2805.4,2805.3,0.087]
[1740323927547,7.32896,2805.4,2805.3,0.087]
[1740323927892,10.1806,2805.4,2805.3,0.087]
[1740323928379,13.1806,2805.4,2805.3,0.087]
[1740323929949,13.91232384,2805.4,2805.3,0.78495417]
[1740323938214,17.67032384,2805.4,2805.3,0.78495417]
[1740323940019,17.67032384,2805.4,2803.2,0.267]
[1740323940020,4.5373,2805.0,2803.2,0.7916]
[1740323940187,0.7793,2804.4,2803.2,0.7916]
[1740323940515,5.18,2804.3,2803.3,3.41503135]
[1740323940720,5.18,2804.3,2803.4,0.7916]
[1740323941515,5.18,2804.3,2803.5,0.7916]
[1740323941903,5.18,2804.3,2803.6,0.04667694]
[1740323942080,5.18,2804.3,2803.7,0.7916]
[1740323942971,5.18,2804.6,2803.9,2.62343135]
[1740323943213,5.18,2804.6,2804.0,0.7916]
[1740323943516,5.18,2804.6,2804.1,0.7916]
[1740323943717,5.18,2804.6,2804.2,2.62343135]
[1740323943915,5.18,2804.6,2804.3,0.7916]
[1740323944218,0.26215178,2805.1,2804.3,0.7916]
[1740323944219,5.18,2805.0,2804.3,0.7916]
[1740323944384,5.18,2805.0,2804.4,0.8046]
[1740323944588,5.18,2805.0,2804.6,0.8046]
[1740323946538,6.2877594,2806.0,2804.8,0.8046]
[1740323946539,5.45265178,2805.6,2804.8,0.8046]
[1740323946894,5.18,2805.6,2804.9,0.8046]
[1740323947494,5.18,2805.6,2805.0,2.62343135]
[1740323947694,5.18,2805.6,2805.1,0.8046]
[1740323948433,5.18,2806.2,2805.3,3.42803135]
[1740323948592,5.18,2806.2,2805.5,0.8046]
[1740323950524,5.18,2806.2,2805.6,3.45543135]
[1740323950832,5.18,2806.2,2805.8,0.832]
[1740323952047,0.71035713,2806.3,2805.8,0.832]
[1740323955753,0.71035713,2806.3,2805.5,0.832]
[1740323957406,5.18,2806.2,2805.5,0.832]
[1740323959453,5.18,2806.2,2805.6,2.62343135]
[1740323959657,5.18,2806.2,2805.7,0.832]
[1740323960465,5.18,2806.2,2805.8,0.832]
[1740323961870,5.18,2806.2,2805.9,0.69855591]
[1740323962023,0.70034049,2806.4,2806.0,0.832]
[1740323962881,5.18,2806.9,2806.1,0.832]
[1740323963530,5.18,2806.9,2806.2,0.832]
[1740323963761,5.18,2806.9,2806.4,3.0]
[1740323963974,5.18,2806.9,2806.5,0.832]
[1740323964622,2.62343135,2807.8,2806.7,0.8247]
[1740323964623,5.18,2807.5,2806.7,0.8247]
[1740323965327,5.18,2807.5,2806.7,3.8247]
[1740323965533,5.18,2807.5,2806.8,0.8247]
[1740323966035,5.18,2808.0,2806.8,0.8247]
[1740323966266,0.26361896,2807.7,2806.8,0.8247]
[1740323966465,5.18,2807.9,2807.1,0.8247]
[1740323966770,5.77689,2807.9,2807.1,0.8247]
[1740323970489,0.2700154,2807.8,2807.1,0.8247]
[1740323970989,5.4500154,2807.8,2807.1,0.8247]
[1740323971183,5.18,2807.8,2807.1,0.8247]
[1740323975282,5.18,2808.0,2807.5,3.43923135]
[1740323975481,5.18,2808.5,2807.7,0.8158]
[1740323975866,0.26345826,2808.4,2807.7,0.8158]
[1740323977495,5.18,2808.5,2807.7,0.8158]
[1740323980479,5.18,2808.8,2807.8,2.62343135]
[1740323980687,5.18,2808.8,2807.9,0.8158]
[1740323981566,5.18,2808.8,2808.0,0.8158]
[1740323984612,5.18,2808.8,2808.2,0.7503]
[1740323985498,5.18,2808.8,2808.3,0.7503]
[1740323986000,5.18,2808.8,2808.2,3.0]
[1740323986001,0.005,2808.9,2808.4,2.62343135]
[1740323986200,0.005,2808.9,2808.5,0.7503]
[1740323986505,0.005,2808.9,2808.8,3.7503]
[1740323993890,0.005,2808.9,2808.8,0.7503]
[1740323995326,0.005,2808.9,2808.5,0.777]
[1740323998217,0.005,2808.9,2808.3,3.777]
[1740323999011,5.185,2808.9,2808.3,0.777]
[1740324001218,5.185,2808.9,2808.0,3.0]
[1740324001219,5.185,2808.9,2808.0,3.777]
[1740324001429,5.185,2808.9,2808.0,0.777]
[1740324001655,0.7993,2808.8,2808.0,0.777]
[1740324001955,1.682529,2808.8,2808.0,0.777]
[1740324002508,1.682529,2808.8,2807.7,0.777]
[1740324002720,5.18,2808.7,2807.7,3.777]
[1740324004816,0.823,2808.6,2807.7,3.777]
[1740324007223,6.003,2808.6,2807.7,3.777]
[1740324007428,0.823,2808.4,2807.7,0.777]
[1740324008300,2.84878,2808.3,2807.3,0.7547]
[1740324008510,0.823,2808.4,2807.3,0.7547]
[1740324009801,3.44882,2808.5,2807.0,0.8296]
[1740324009802,2.84908,2808.0,2807.0,0.8296]
[1740324010007,0.8296,2807.8,2807.0,0.8296]
[1740324010256,0.8296,2807.8,2806.8,0.8296]
[1740324010730,0.8296,2807.7,2806.5,1.0966]
[1740324010945,0.8296,2807.5,2806.2,0.8296]
[1740324011150,6.895506,2807.4,2806.2,0.8296]
[1740324011330,6.895506,2807.4,2806.2,3.8296]
[1740324013635,0.7931,2807.3,2806.2,3.8296]
[1740324015224,5.18,2807.4,2806.9,0.8251]
[1740324015536,0.7931,2807.8,2806.9,0.8251]
[1740324016742,0.7931,2807.8,2806.6,4.0921]
[1740324017674,3.11769282,2807.9,2806.3,2.62343135]
[1740324017675,0.7931,2807.6,2806.3,2.62343135]
[1740324017842,0.7931,2807.4,2806.3,0.8251]
[1740324018044,0.7931,2807.4,2806.4,2.62343135]
[1740324018243,1.39041,2807.4,2806.4,2.62343135]
[1740324019077,0.7931,2807.3,2806.3,0.8251]
[1740324019377,0.7931,2807.3,2806.1,3.71553135]
[1740324022690,5.18,2807.2,2806.1,3.71553135]
[1740324022890,5.9731,2807.2,2806.1,3.71553135]
[1740324023181,0.7931,2807.1,2806.4,2.62343135]
[1740324023956,0.7931,2807.1,2806.7,2.62343135]
[1740324024283,5.18,2807.2,2806.7,2.62343135]
[1740324028566,5.18,2807.4,2806.5,0.8251]
[1740324028772,0.7847,2807.3,2806.2,0.8277]
[1740324028980,0.7847,2807.2,2806.2,0.8277]
[1740324029188,0.7847,2807.2,2806.1,2.89043135]
[1740324029509,0.7847,2807.2,2806.2,3.0]
[1740324031393,5.18,2807.1,2806.2,3.0]
[1740324031603,0.8042,2807.0,2806.2,3.0]
[1740324031909,0.8042,2806.9,2806.2,3.0]
[1740324034529,5.9842,2806.9,2806.1,2.62343135]
[1740324034727,0.8042,2806.8,2805.9,3.267]
[1740324034909,0.8042,2806.8,2805.9,3.0]
[1740324037396,0.8042,2806.6,2805.5,0.8301]
[1740324037600,0.8042,2806.4,2805.5,1.0971]
[1740324038139,0.8042,2806.4,2805.5,4.0971]
[1740324038437,5.18,2806.3,2805.5,4.0971]
[1740324039939,0.8042,2806.2,2805.5,3.267]
[1740324040135,0.8042,2806.2,2805.5,3.0]
[1740324048268,0.82136062,2807.0,2805.4,2.62343135]
[1740324048269,0.7744,2806.7,2806.1,0.8208]
[1740324049371,0.7744,2806.7,2806.3,2.62343135]
[1740324051118,0.8223,2807.2,2806.6,2.62343135]
[1740324051233,0.8223,2807.2,2806.7,3.0]
[1740324051545,0.72077794,2808.0,2806.9,2.62343135]
[1740324051546,0.8223,2807.8,2806.9,2.62343135]
[1740324051885,0.8223,2807.8,2807.3,0.7549]
[1740324052037,5.18,2808.2,2807.3,0.7549]
[1740324052038,0.8223,2808.1,2807.5,2.62343135]
[1740324052425,0.8223,2808.1,2807.3,0.7549]
[1740324052426,0.8223,2808.4,2807.8,2.62343135]
[1740324052543,0.8223,2808.7,2808.2,2.62343135]
[1740324052743,0.8223,2808.7,2807.9,3.64533135]
[1740324053650,0.8223,2808.7,2807.9,0.267]
[1740324053850,0.60023,2808.6,2807.9,0.267]
[1740324054040,0.60023,2808.6,2807.6,3.37833135]
[1740324054242,0.60023,2808.6,2807.7,0.267]
[1740324055374,0.8223,2808.7,2807.7,0.267]
[1740324056647,0.8223,2808.7,2807.6,3.37833135]
[1740324056849,0.8223,2808.7,2807.6,0.7549]
[1740324057949,0.8223,2808.7,2807.7,2.62343135]
[1740324060044,0.8223,2808.7,2807.6,0.7549]
[1740324060246,1.42253,2808.6,2807.6,0.7549]
[1740324060975,0.8223,2808.5,2807.5,3.0]
[1740324061143,0.8223,2808.5,2807.4,5.39]
[1740324061679,0.8223,2808.5,2807.5,3.0]
[1740324063783,0.8223,2808.4,2807.4,5.39]
[1740324064366,0.7773,2808.2,2807.2,3.7549]
[1740324064564,0.59573,2808.1,2807.2,3.7549]
[1740324065499,0.7773,2808.0,2807.2,3.0]
[1740324065800,5.9573,2808.0,2807.2,3.0]
[1740324067407,0.7773,2807.8,2806.6,0.7795]
[1740324067590,0.7773,2807.8,2806.0,5.39]
[1740324067591,0.7773,2807.7,2806.3,3.66993135]
[1740324067774,0.7773,2807.5,2806.3,3.66993135]
[1740324067970,5.18,2807.6,2805.8,5.39]
[1740324067971,5.18,2807.4,2806.0,3.40293135]
[1740324068173,0.7773,2807.3,2806.0,3.66993135]
[1740324068373,0.7773,2807.1,2806.1,3.0]
[1740324068596,0.7773,2807.1,2806.0,3.66993135]
[1740324068797,0.7773,2807.1,2806.1,3.0]
[1740324069201,0.7773,2807.1,2806.0,3.66993135]
[1740324069979,0.7773,2807.1,2806.1,3.0]
[1740324073213,5.9573,2807.1,2806.1,3.0]
[1740324073505,0.7574,2807.0,2806.1,3.0]
[1740324074775,0.7574,2807.0,2805.8,3.7825]
[1740324075574,0.7574,2806.8,2805.7,8.002]
[1740324075814,0.7574,2806.6,2805.6,0.267]
[1740324076917,0.7574,2806.6,2805.4,3.0]
[1740324077103,0.7574,2806.4,2805.4,3.0]
[1740324077413,0.7574,2806.2,2805.4,3.0]
[1740324078049,0.7574,2806.2,2804.6,0.75]
[1740324078050,0.7574,2806.1,2804.9,3.40593135]
[1740324078253,0.7574,2806.1,2805.0,0.267]
[1740324078819,0.7574,2806.1,2804.9,3.67293135]
[1740324079048,0.7574,2805.9,2804.9,2.62343135]
[1740324079252,0.7574,2805.8,2804.9,2.62343135]
[1740324080227,0.7574,2805.8,2804.7,3.0]
[1740324080228,0.7574,2805.8,2805.2,2.62343135]
[1740324080446,0.55,2806.7,2805.0,3.0]
[1740324080447,0.7574,2806.2,2805.5,2.62343135]
[1740324080617,5.18,2806.4,2805.8,2.62343135]
[1740324080822,5.18,2806.4,2805.8,3.40593135]
[1740324081351,0.7574,2806.5,2806.1,2.62343135]
[1740324081554,0.71051457,2806.7,2806.2,0.69780641]
[1740324082152,0.7574,2806.8,2806.2,0.69780641]
[1740324083429,0.7574,2806.8,2805.9,3.0]
[1740324084034,0.7574,2806.8,2805.7,0.267]
[1740324084934,0.7574,2806.8,2805.9,2.62343135]
[1740324085152,0.7574,2806.8,2806.0,0.8083]
[1740324087268,0.7574,2806.8,2805.9,2.62343135]
[1740324088378,0.7574,2806.8,2805.8,0.70059078]
[1740324090074,0.7574,2806.8,2805.9,2.62343135]
[1740324091067,5.9374,2806.8,2805.9,2.62343135]
[1740324091774,0.8003,2806.7,2805.9,2.62343135]
[1740324091976,0.8003,2806.7,2805.7,0.267]
[1740324092156,0.8003,2806.6,2805.6,0.267]
[1740324093177,0.8003,2806.5,2805.4,3.0]
[1740324093398,0.8003,2806.5,2805.4,3.267]
[1740324097007,5.18,2806.4,2805.4,3.267]
[1740324097198,0.8003,2806.3,2805.4,3.267]
[1740324100405,0.8003,2806.3,2805.6,2.62343135]
[1740324100581,0.8003,2806.3,2805.9,2.62343135]
[1740324109821,0.8003,2806.3,2806.2,0.70801069]
[1740324113088,0.7629,2807.0,2806.2,0.70801069]
[1740324113289,1.46384557,2807.0,2806.3,2.62343135]
[1740324113489,0.7629,2807.0,2806.3,2.62343135]
[1740324114524,0.7629,2807.0,2806.2,0.267]
[1740324117827,0.7629,2806.9,2805.8,0.8155]
[1740324118032,0.7629,2806.9,2805.8,3.267]
[1740324120456,0.7629,2806.9,2805.8,3.0]
[1740324120933,0.7629,2806.9,2805.6,5.39]
[1740324121134,0.7629,2806.7,2805.4,3.15793775]
[1740324121353,0.7629,2806.5,2805.5,3.0]
[1740324124248,0.7629,2806.5,2805.7,2.62343135]
[1740324127037,0.7751,2806.4,2805.4,5.62343135]
[1740324132741,0.7695,2806.3,2805.4,5.62343135]
[1740324137893,0.7695,2806.3,2805.3,0.266]
[1740324138096,0.7695,2806.1,2805.1,0.266]
[1740324138278,0.7695,2806.1,2805.0,0.266]
[1740324138460,0.7695,2806.1,2804.9,2.62343135]
[1740324138885,0.7695,2805.9,2804.6,2.62343135]
[1740324139062,0.7695,2805.7,2804.7,0.266]
[1740324139274,0.7695,2805.5,2804.6,2.62343135]
[1740324140385,0.7695,2805.5,2804.9,2.62343135]
[1740324142697,0.7695,2805.5,2804.8,0.793]
[1740324142698,0.7695,2805.5,2805.2,2.62343135]
[1740324144364,0.7969,2806.5,2805.2,2.62343135]
[1740324144564,0.7969,2806.3,2805.2,2.62343135]
[1740324147597,0.7969,2806.2,2805.2,2.62343135]
[1740324148904,0.7969,2806.2,2804.6,5.39]
[1740324148905,0.55,2805.9,2804.6,5.39]
[1740324149071,0.7969,2805.7,2804.4,2.62343135]
[1740324149271,0.7969,2805.7,2804.7,2.62343135]
[1740324150278,0.7969,2805.7,2805.0,2.62343135]
[1740324153510,2.9769,2806.1,2805.0,2.62343135]
[1740324154977,2.9769,2806.1,2805.3,2.62343135]
[1740324156407,0.7866,2806.0,2805.3,2.62343135]
[1740324156989,0.7866,2806.0,2805.6,2.62343135]
[1740324157541,0.7866,2806.4,2805.6,3.42383135]
[1740324165446,0.7866,2806.4,2805.6,2.62343135]
[1740324165602,0.7866,2806.4,2805.4,5.39]
[1740324165803,0.7866,2806.4,2805.5,3.0]
[1740324166547,0.7866,2806.4,2805.4,5.39]
[1740324167400,0.7866,2806.4,2805.5,3.0]
[1740324168197,3.7635,2806.4,2805.5,3.0]
[1740324168404,0.8181,2806.3,2805.4,3.0]
[1740324172420,0.8181,2806.3,2805.0,2.62343135]
[1740324172820,0.8181,2806.3,2805.1,3.0]
[1740324173022,0.8052,2806.1,2805.1,3.0]
[1740324174261,0.8052,2805.9,2804.4,8.78113135]
[1740324174423,0.8052,2805.9,2804.7,2.62343135]
[1740324175079,0.8052,2805.9,2804.8,3.0]
[1740324175410,0.8052,2805.7,2804.8,3.0]
[1740324176470,0.8052,2805.7,2805.0,2.62343135]
[1740324183273,0.8052,2805.7,2804.8,0.7677]
[1740324186548,0.8052,2805.7,2804.8,3.7677]
[1740324186902,0.8052,2805.7,2804.8,3.0]
[1740324187418,0.8052,2805.7,2804.4,8.01343135]
[1740324187615,0.8065,2805.6,2804.1,8.28512527]
[1740324187828,0.8065,2805.6,2804.3,0.266]
[1740324188623,0.8065,2805.6,2804.5,3.0]
[1740324189032,0.8065,2805.6,2804.7,2.62343135]
[1740324189203,1.18484,2805.6,2804.7,2.62343135]
[1740324189403,0.7768,2805.5,2804.7,2.62343135]
[1740324190551,0.7768,2805.5,2804.5,3.0]
[1740324191329,0.7768,2805.5,2804.7,2.62343135]
[1740324194908,0.7768,2805.5,2804.5,3.41663135]
[1740324195949,0.7768,2805.5,2804.5,2.62343135]
[1740324197747,0.7768,2805.5,2804.4,5.39]
[1740324198116,0.7768,2805.5,2804.3,0.266]
[1740324198117,0.7768,2805.4,2804.3,0.266]
[1740324202358,0.7768,2805.4,2804.3,3.0]
[1740324203660,0.7768,2805.2,2804.0,0.266]
[1740324205032,0.7768,2805.2,2804.2,3.0]
[1740324205640,0.7768,2805.2,2804.4,2.62343135]
[1740324206178,0.7768,2805.2,2804.2,3.8107]
[1740324206179,0.7768,2805.2,2804.7,2.62343135]
[1740324208662,0.7768,2805.2,2804.4,2.62343135]
[1740324209025,0.7768,2805.2,2804.3,5.656]
[1740324209475,0.7768,2805.2,2804.6,2.62343135]
[1740324213591,0.7768,2805.2,2804.3,8.27943135]
[1740324216047,0.7768,2805.2,2804.3,5.39]
[1740324216390,0.7768,2805.2,2803.8,0.26287792]
[1740324216391,0.7768,2805.2,2804.0,0.266]
[1740324217656,0.7768,2805.2,2803.6,0.7591]
[1740324217657,5.8289,2805.1,2803.6,0.7591]
[1740324217851,0.7636,2804.9,2803.6,0.266]
[1740324218018,0.7636,2804.9,2803.5,2.62343135]
[1740324218223,0.7636,2804.9,2803.6,3.266]
[1740324218607,0.7636,2804.9,2803.8,2.62343135]
[1740324220707,0.7636,2804.9,2803.8,3.38253135]
[1740324221055,0.7636,2804.9,2803.9,3.0]
[1740324222531,0.7636,2804.9,2803.6,0.266]
[1740324222840,0.7636,2804.9,2803.8,3.0]
[1740324227750,3.7406,2804.8,2803.8,3.0]
[1740324227911,0.7637,2804.6,2803.8,3.0]
[1740324229030,0.7637,2804.5,2803.8,3.0]
[1740324230243,0.7637,2804.5,2803.5,3.0]
[1740324231454,0.7637,2804.5,2803.6,2.62343135]
[1740324232430,0.7637,2804.5,2804.2,2.62343135]
[1740324233547,2.9769,2805.5,2804.2,2.62343135]
[1740324233749,0.7571,2805.4,2804.2,2.62343135]